fUSD/lending_fUSD_20240101
["ID","MTS","AMOUNT","RATE_DAILY","PERIOD"]
[309800640,1704151831930,-655.83,0.0003378,2]
[309800641,1704151831939,-655.83,0.00033952,2]
[309800642,1704151831949,-1000.0,0.00034,4]
[309800643,1704151831959,-162.31,0.00034036,2]
[309800644,1704151831968,-655.83,0.00034125,2]
[309800645,1704151831977,-603.25,0.00034145,2]
[309800646,1704151831987,-636.61,0.00034293,2]
[309800647,1704151831996,-655.83,0.00034297,2]
[309800648,1704151832005,-713.64,0.00034314,2]
[309800649,1704151832014,-655.83,0.00034469,2]
[309800650,1704151832023,-625.15912163,0.000345,2]
[309800651,1704151832032,-154.6,0.0003459,10]
[309800652,1704151832041,-32397.0673,0.0003459,2]
[309800653,1704151832051,-182.78689203,0.00034596,2]
[309800654,1704151832059,-423.98613636,0.00034596,2]
[309800655,1704151832069,-10806.03,0.000346,2]
[309800656,1704151832078,-15364.29089352,0.000346,2]
[309800657,1704151832091,-307.51494231,0.000346,2]
[309800658,1704151832103,-16624.5445274,0.000346,2]
[309800659,1704151832114,-43888.00000001,0.000346,2]
[309800660,1704151832125,-1779.94963676,0.000346,2]
[309800661,1704151832134,-53357.25,0.000346,2]
[309800662,1704151832143,-655.83,0.00034642,2]
[309800663,1704151832152,-209.46,0.0003468,2]
[309800664,1704151832161,-300.0,0.00034683,2]
[309800665,1704151832170,-223.0,0.00034687,3]
[309800666,1704151832179,-155.0,0.00034688,4]
[309800667,1704151832188,-2725.20555083,0.00034688,2]
[309800668,1704151832197,-361.06543654,0.00034688,4]
[309800669,1704151832207,-209.46,0.00034689,2]
[309800670,1704151832216,-209.46,0.00034689,2]
[309800671,1704151832225,-215.57259319,0.00034689,2]
[309800672,1704151832234,-40291.6157,0.0003469,2]
[309800673,1704151832243,-85125.37586039,0.0003469,2]
[309800674,1704151832254,-5184.66684205,0.0003469,2]
[309800675,1704151832267,-9689.95729756,0.0003469,2]
[309800676,1704151832276,-3559.91104156,0.00034699,2]
[309800677,1704151832312,-626.27669153,0.00034699,2]
[309800678,1704151832323,-944.79999996,0.00034699,2]
[309800679,1704151832341,-2200.0,0.00034699,2]
[309800680,1704151832352,-301.38376393,0.00034699,2]
[309800681,1704151832368,-11448.96264388,0.00034699,2]
[309800682,1704151832379,-542.18999,0.00034699,2]
[309800683,1704151832391,-14341.82456914,0.00034699,2]
[309800684,1704151832400,-1000.0,0.00034699,2]
[309800685,1704151832409,-500.0,0.00034699,2]
[309800686,1704151832418,-24158.17543086,0.00034699,2]
[309800687,1704151832433,-1311.98131912,0.00034699,2]
[309800688,1704151832445,-554.94175929,0.00034699,2]
[309800689,1704151832581,-450.90915744,0.00034699,2]
[309800690,1704151832592,-5426.41465695,0.00034699,2]
[309800691,1704151834756,-206.0,0.0003182,2]
[309800693,1704151834766,-480.85238588,0.00034699,2]
[309800696,1704151834778,-516.30904048,0.00034699,2]
[309800732,1704151837425,-212100.41624998,0.00034699,2]
[309800733,1704151837435,-162.31,0.00034747,2]
[309800734,1704151837444,-170.68,0.00034797,2]
[309800735,1704151837452,-208.0,0.000348,2]
[309800736,1704151837462,-655.83,0.00034814,2]
[309800737,1704151837471,-7500.0,0.000349,2]
[309800738,1704151837480,-655.83,0.00034987,2]
[309800739,1704151837489,-168.49944388,0.00034997,2]
[309800740,1704151837498,-18008.62331581,0.00035,2]
[309800741,1704151837720,-80166.13016649,0.00035,2]
[309800742,1704151837729,-450.0,0.00035,3]
[309800743,1704151837739,-6866.8641331,0.00035,10]
[309800744,1704151837750,-499.99,0.00035,2]
[309800745,1704151837760,-159.04,0.00035093,2]
[309800746,1704151837769,-603.25,0.00035123,2]
[309800747,1704151837779,-655.83,0.00035159,2]
[309800748,1704151837789,-162.01,0.00035261,2]
[309800749,1704151837799,-655.83,0.00035331,2]
[309800750,1704151837809,-153.84,0.00035405,2]
[309800751,1704151837818,-162.31,0.00035459,2]
[309800752,1704151837828,-636.61,0.00035475,2]
[309800753,1704151837837,-120.73766427,0.00035503,2]
[309800754,1704151837849,-888.86820112,0.00035503,2]
[309800755,1704151837858,-655.83,0.00035504,2]
[309800756,1704151837867,-151.34,0.00035616,2]
[309800757,1704151837878,-152.0,0.00035633,3]
[309800758,1704151837887,-655.83,0.00035676,2]
[309800759,1704151837896,-655.83,0.00035848,2]
[309800760,1704151837906,-753.6,0.00035897,2]
[309800761,1704151837915,-423.98613634,0.0003592,2]
[309800763,1704151837924,-209.46,0.0003599,2]
[309800765,1704151837934,-164.04,0.00035995,2]
[309800766,1704151837943,-5993.64641832,0.00036,4]
[309800809,1704151839966,-416.18,0.000345,2]
[309800821,1704151842766,-8927.02371624,0.000345,2]
[309800822,1704151842779,-2852.67,0.000345,2]
[309800823,1704151842791,-272.30439642,0.000345,2]
[309800825,1704151842877,-480.15321804,0.000345,2]
[309800826,1704151842935,-8657.410293,0.000345,2]
[309800827,1704151842994,-1000.0,0.000345,2]
[309800828,1704151843007,-698.84336427,0.000345,2]
[309800829,1704151843020,-13319.81801179,0.000345,2]
[309800830,1704151843056,-2213.3376,0.000345,2]
[309800831,1704151843135,-469.11,0.000345,2]
[309800832,1704151843148,-5108.44217423,0.000345,2]
[309800833,1704151843181,-55584.70722601,0.000345,2]
[309800835,1704151843190,-773.05,0.00034689,10]
[309800837,1704151843201,-234.78997094,0.00034698,4]
[309800839,1704151843210,-2891.24890645,0.00034698,4]
[309800841,1704151843220,-337.389266,0.00034698,4]
[309800842,1704151843231,-155.0,0.00035999,4]
[309800843,1704151843241,-269.83626346,0.00035999,2]
[309800846,1704151843250,-77342.65466894,0.00036,4]
[309800848,1704151843260,-655.83,0.00036021,2]
[309800849,1704151843271,-603.25,0.00036102,2]
[309800850,1704151843282,-162.31,0.0003617,2]
[309800851,1704151843293,-246.4,0.00036347,2]
[309800852,1704151843304,-182.786892,0.00036354,2]
[309800853,1704151843316,-514.40879808,0.00036396,2]
[309800854,1704151843327,-153.84,0.00036478,2]
[309800855,1704151843338,-1096.21387185,0.00036578,14]
[309800856,1704151843349,-713.64,0.00036578,2]
[309800857,1704151843363,-2045.68433873,0.00036598,2]
[309800858,1704151843373,-159.04,0.00036601,2]
[309800859,1704151843383,-636.61,0.00036656,2]
[309800860,1704151843394,-75000.0,0.00036712,15]
[309800861,1704151843404,-214.87,0.00036713,2]
[309800862,1704151843415,-162.31,0.00036882,2]
[309800863,1704151843424,-157.65618223,0.000369,2]
[309800864,1704151843433,-157.6561822,0.000369,2]
[309800865,1704151843443,-157.6561822,0.000369,2]
[309800866,1704151843454,-157.6561822,0.000369,2]
[309800867,1704151843463,-157.6561822,0.000369,2]
[309800868,1704151843475,-500.0,0.00037,3]
[309800869,1704151843487,-160.0,0.00037045,2]
[309800870,1704151843499,-603.25,0.0003708,2]
[309800871,1704151843511,-162.01,0.00037087,2]
[309800872,1704151843523,-423.98613634,0.00037243,2]
[309800873,1704151843533,-151.394865,0.00037308,2]
[309800874,1704151843542,-206.0,0.00037456,13]
[309800875,1704151843552,-157.6561822,0.000375,2]
[309800876,1704151843563,-153.84,0.00037551,2]
[309800877,1704151843574,-162.31,0.00037593,2]
[309800878,1704151843587,-14401.0,0.00037873,2]
[309800879,1704151843598,-2160.66,0.00037873,2]
[309800880,1704151843609,-1307.79732603,0.00038,4]
[309800881,1704151843620,-603.25,0.00038059,2]
[309800882,1704151843630,-157.6561822,0.000381,2]
[309800883,1704151843640,-159.04,0.0003811,2]
[309800884,1704151843653,-182.786892,0.00038111,2]
[309800885,1704151843664,-210.34328772,0.00038267,10]
[309800886,1704151843674,-162.31,0.00038304,2]
[309800887,1704151843684,-423.98613634,0.00038567,2]
[309800888,1704151843694,-177.35606036,0.00038578,2]
[309800889,1704151843705,-2881.92891155,0.00038578,12]
[309800890,1704151843716,-153.84,0.00038624,2]
[309800891,1704151843726,-157.6561822,0.000387,2]
[309800892,1704151843736,-713.64,0.00038842,2]
[309800893,1704151843747,-150.0,0.00038879,2]
[309800894,1704151843757,-313.25,0.00038879,2]
[309800895,1704151843768,-281.55,0.00038879,2]
[309800896,1704151843780,-406.8,0.00038879,2]
[309800897,1704151843792,-1039.88,0.00038879,2]
[309800898,1704151843804,-151.61,0.00038879,2]
[309800899,1704151843813,-236.09,0.00038879,2]
[309800900,1704151843826,-2231.56366,0.0003888,2]
[309800901,1704151843839,-150.91611784,0.000389,2]
[309800902,1704151843849,-162.01,0.00038914,2]
[309800903,1704151843859,-1799.12,0.00038924,5]
[309800904,1704151843869,-1822.49,0.00038991,5]
[309800905,1704151843879,-1424.97645405,0.00039,2]
[309800906,1704151843890,-150.0,0.00039,2]
[309800907,1704151843900,-150.0,0.00039,2]
[309800908,1704151843910,-235.34054347,0.00039,2]
[309800909,1704151843920,-251.67402828,0.00039,2]
[309800910,1704151843930,-500.0,0.00039,2]
[309800911,1704151843944,-500.0,0.00039002,2]
[309800912,1704151843957,-7955.64833276,0.00039006,11]
[309800913,1704151843966,-3494.97752811,0.00039006,6]
[309800914,1704151843976,-1974.44460411,0.00039006,6]
[309800915,1704151843987,-5367.46102453,0.00039006,12]
[309800916,1704151843998,-162.31,0.00039016,2]
[309800917,1704151844009,-150.0,0.0003902,2]
[309800918,1704151844022,-150.0,0.00039022,2]
[309800919,1704151844035,-603.25,0.00039037,2]
[309800920,1704151844048,-150.0,0.00039042,2]
[309800921,1704151844058,-150.0,0.00039051,2]
[309800922,1704151844070,-150.0,0.00039051,2]
[309800923,1704151844080,-150.0,0.00039052,2]
[309800924,1704151844090,-150.0,0.0003906,2]
[309800925,1704151844100,-150.0,0.00039063,2]
[309800926,1704151844110,-150.0,0.00039083,2]
[309800927,1704151844121,-150.0,0.00039086,2]
[309800928,1704151844131,-150.0,0.00039086,2]
[309800929,1704151844141,-150.0,0.00039096,2]
[309800930,1704151844152,-150.0,0.00039115,2]
[309800931,1704151844162,-150.0,0.00039117,2]
[309800932,1704151844173,-150.0,0.00039123,2]
[309800933,1704151844183,-150.0,0.00039126,2]
[309800934,1704151844193,-150.0,0.00039128,2]
[309800935,1704151844203,-1943.30309836,0.00039133,2]
[309800936,1704151844214,-150.0,0.00039138,2]
[309800937,1704151844224,-150.0,0.00039158,2]
[309800938,1704151844234,-150.0,0.00039181,2]
[309800939,1704151844244,-150.0,0.00039182,2]
[309800940,1704151844254,-150.0,0.0003919,2]
[309800941,1704151844264,-2000.0,0.000392,6]
[309800942,1704151844275,-1000.0,0.000392,14]
[309800943,1704151844285,-257.33,0.000392,2]
[309800944,1704151844295,-150.0,0.00039206,2]
[309800945,1704151844307,-150.0,0.00039225,2]
[309800946,1704151844317,-150.0,0.00039227,2]
[309800947,1704151844327,-150.0,0.00039228,2]
[309800948,1704151844337,-150.0,0.00039228,2]
[309800949,1704151844348,-150.0,0.00039242,2]
[309800950,1704151844359,-150.0,0.00039243,2]
[309800951,1704151844370,-209.46,0.00039243,2]
[309800952,1704151844380,-2881.92891151,0.00039246,12]
[309800953,1704151844392,-76588.9365978,0.00039253,4]
[309800954,1704151844403,-150.0,0.0003926,2]
[309800955,1704151844413,-1000.0,0.0003926,2]
[309800956,1704151844423,-150.0,0.00039263,2]
[309800957,1704151844434,-1824.04,0.00039267,5]
[309800958,1704151844445,-164.04,0.00039267,2]
[309800959,1704151844455,-252.05866782,0.0003927,2]
[309800960,1704151844466,-2500.0,0.0003927,2]
[309800961,1704151844477,-688.54784714,0.0003927,2]
[309800962,1704151844487,-1009.60586539,0.00039271,2]
[309800963,1704151844498,-854.31098454,0.00039271,2]
[309800964,1704151844508,-255.10355338,0.00039275,5]
[309800965,1704151844518,-157.6561822,0.000393,2]
[309800966,1704151844660,-181.06561322,0.00039305,10]
[309800967,1704151844670,-285.40942141,0.00039312,10]
[309800968,1704151844680,-435.70379516,0.00039312,10]
[309800969,1704151844690,-324.17474902,0.00039312,10]
[309800970,1704151844700,-381.72494282,0.00039312,10]
[309800971,1704151844710,-229.89626937,0.00039312,10]
[309800972,1704151844722,-163.71923932,0.00039312,8]
[309800973,1704151844732,-1000.0,0.0003932,10]
[309800974,1704151844752,-379.25065921,0.0003932,10]
[309800975,1704151844765,-363.82053182,0.0003932,10]
[309800976,1704151844777,-284.61673111,0.0003932,10]
[309800977,1704151844788,-311.01888628,0.0003932,10]
[309800978,1704151844798,-209.46,0.00039378,2]
[309800979,1704151844810,-94155.42156653,0.00039388,120]
[309800980,1704151844820,-599.26294269,0.00039388,120]
[309800981,1704151844831,-4797.20991918,0.00039388,3]
[309800982,1704151844842,-10088.01482068,0.00039388,120]
[309800983,1704151844852,-454.53503049,0.00039388,2]
[309800984,1704151844863,-1765.58586118,0.00039388,120]
[309800985,1704151844874,-177.01826609,0.00039388,120]
[309800986,1704151844885,-1053.37451848,0.00039388,120]
[309800987,1704151844895,-2089.9152894,0.00039388,120]
[309800988,1704151844905,-266.62290104,0.00039388,7]
[309800989,1704151844915,-1579.33156101,0.00039388,10]
[309800990,1704151844927,-462.17019315,0.00039388,120]
[309800991,1704151844938,-563.20075701,0.00039388,120]
[309800992,1704151844949,-293.06723862,0.00039388,120]
[309800993,1704151844961,-3260.55371516,0.00039388,120]
[309800994,1704151844972,-216.44290441,0.00039388,120]
[309800995,1704151844984,-28729.89140595,0.00039388,120]
[309800996,1704151844996,-322.080275,0.00039388,63]
[309800997,1704151845006,-366.20846401,0.00039388,120]
[309800998,1704151845019,-1448.0,0.00039388,120]
[309800999,1704151845032,-427.6418266,0.000395,4]
[309801000,1704151845043,-160.0,0.00039639,2]
[309801001,1704151845056,-153.84,0.00039696,2]
[309801002,1704151845068,-406.8,0.00039701,2]
[309801003,1704151845078,-150.0,0.00039701,2]
[309801004,1704151845090,-313.25,0.00039701,2]
[309801005,1704151845101,-406.8,0.00039701,2]
[309801006,1704151845111,-150.0,0.00039701,2]
[309801007,1704151845121,-313.25,0.00039701,2]
[309801008,1704151845133,-150.0,0.00039701,2]
[309801009,1704151845143,-313.25,0.00039701,2]
[309801010,1704151845155,-406.8,0.00039701,2]
[309801011,1704151845166,-406.8,0.00039701,2]
[309801012,1704151845175,-150.0,0.00039701,2]
[309801013,1704151845187,-313.25,0.00039701,2]
[309801014,1704151845198,-406.8,0.00039701,2]
[309801015,1704151845207,-150.0,0.00039701,2]
[309801016,1704151845218,-150.0,0.00039701,2]
[309801017,1704151845228,-406.8,0.00039701,2]
[309801019,1704151845238,-406.8,0.00039701,2]
[309801021,1704151845248,-150.0,0.00039701,2]
[309801022,1704151845257,-406.8,0.00039701,2]
[309801023,1704151845267,-150.0,0.00039701,2]
[309801024,1704151845279,-150.0,0.00039701,2]
[309801025,1704151845288,-162.31,0.00039727,2]
[309801027,1704151845299,-411.27705502,0.00039859,2]
[309801029,1704151845309,-182.41060972,0.00039859,2]
[309801031,1704151845319,-9369.37545785,0.00039866,2]
[309801033,1704151845330,-848.73169078,0.00039866,2]
[309801035,1704151845339,-917.65878639,0.00039866,2]
[309801037,1704151845349,-182.786892,0.00039869,2]
[309801038,1704151845359,-10083.83385073,0.00039878,2]
[309801039,1704151845369,-753.6,0.00039885,2]
[309801040,1704151845378,-76588.9365978,0.0003989,5]
[309801041,1704151845387,-209.46,0.0003989,2]
[309801042,1704151845397,-423.98613634,0.0003989,2]
[309801043,1704151845406,-200.0,0.000399,10]
[309801045,1704151845418,-2000.0,0.000399,4]
[309801047,1704151845427,-1000.0,0.000399,15]
[309801048,1704151845437,-5438.77571123,0.000399,2]
[309801049,1704151845447,-55555.0,0.000399,3]
[309801050,1704151845457,-351.83257708,0.000399,31]
[309801051,1704151845467,-157.6561822,0.000399,2]
[309801052,1704151845477,-2881.92891151,0.00039914,13]
[309801053,1704151845487,-203.0,0.0003992,2]
[309801054,1704151845496,-209.46,0.00039949,2]
[309801055,1704151845505,-209.46,0.00039949,2]
[309801056,1704151845515,-191612.45644529,0.00039959,5]
[309801059,1704151845833,-3751.82315391,0.00034351,4]
[309801060,1704151845844,-5089.76710798,0.00034698,4]
[309801062,1704151845854,-564.95459726,0.00035999,4]
[309801064,1704151845865,-87108.47456511,0.00039959,5]
[309801069,1704151846126,-4387.9,0.00039959,5]
[309801070,1704151846147,-23246.9153806,0.00039959,5]
[309801071,1704151846157,-151.0,0.00039959,7]
[309801072,1704151846169,-63136.88804983,0.00039959,5]
[309801073,1704151846276,-317.5445672,0.00039959,5]
[309801074,1704151846289,-631.5020471,0.00039959,5]
[309801075,1704151859917,-359.67963764,0.00027599,2]
[309801076,1704151859939,-2190.65715,0.00034695,4]
[309801077,1704151859959,-155.0,0.00034696,4]
[309801078,1704151859979,-11635.2625698,0.00034696,2]
[309801079,1704151860000,-5000.0,0.00034697,4]
[309801080,1704151860020,-659.40064256,0.00034697,4]
[309801083,1704152108299,-250.0,0.00027,3]
[309801084,1704152108321,-480.34997238,0.00028798,2]
[309801085,1704152108341,-300.0,0.00029,3]
[309801086,1704152108362,-350.0,0.00031,3]
[309801087,1704152108385,-400.0,0.00033,3]
[309801088,1704152108407,-535.23,0.00033211,2]
[309801089,1704152108429,-1000.0,0.00034097,4]
[309801090,1704152108454,-157.30056195,0.00034098,2]
[309801091,1704152108473,-6204.72342548,0.00034197,4]
[309801092,1704152139417,-21895.62100001,0.00034198,4]
[309801093,1704152139440,-1000.0,0.00034499,4]
[309801094,1704152139463,-77104.37899999,0.000345,2]
[309801095,1704152155722,-167895.62100001,0.000345,2]
[309801096,1704152158547,1000.0,0.00034499,4]
[309801101,1704152213770,-644.63017906,0.00034595,4]
[309801102,1704152213792,-1000.0,0.00034596,4]
[309801103,1704152213813,-2642.323,0.00034597,2]
[309801104,1704152213844,-194.15099293,0.00034998,4]
[309801105,1704152213876,-5000.0,0.00034998,3]
[309801106,1704152213909,-2537.55404705,0.00034999,4]
[309801107,1704152213943,-37981.34178096,0.00035,4]
[309801108,1704152479231,-1000.0,0.00034197,4]
[309801109,1704152479256,-19615.38373186,0.00034198,4]
[309801110,1704152479279,-209.46,0.0003439,2]
[309801111,1704152479302,-29175.15626814,0.000344,2]
[309801114,1704152817097,-155.0,0.00029068,2]
[309801115,1704152817118,-163.35829217,0.00029068,2]
[309801116,1704152817139,-362.82049166,0.00029068,2]
[309801117,1704152817162,-336.35995625,0.00029068,2]
[309801118,1704152817183,-346.18797911,0.00029068,2]
[309801155,1704153034069,-360.50761194,0.00028736,2]
[309801156,1704153034127,-216.00228571,0.00028736,2]
[309801157,1704153034137,-129.19771429,0.00028736,2]
[309801158,1704153034149,-100.74567249,0.00028736,2]
[309801159,1704153034158,-249.39139602,0.00028736,2]
[309801160,1704153034168,-12.90031237,0.00028736,2]
[309801161,1704153034180,-142.09968763,0.00028736,2]
[309801162,1704153034190,-527.27825206,0.00028736,2]
[309801163,1704153034201,-756.20900926,0.00028736,2]
[309801164,1704153034212,-540.90072547,0.00028736,2]
[309801165,1704153034222,-400.0,0.00028736,2]
[309801166,1704153034231,-3021.91843256,0.00028737,2]
[309801167,1704153034241,-411.84729255,0.00028737,2]
[309801168,1704153034253,-3188.92496601,0.00028737,2]
[309801169,1704153034269,-319.57932715,0.00028737,2]
[309801170,1704153034279,-155.0,0.00028737,2]
[309801171,1704153034289,-402.17174956,0.00028737,2]
[309801172,1704153034299,-3.44892329,0.00028737,2]
[309801173,1704153034458,-315.145,0.00028737,2]
[309801174,1704153036821,-492.83979718,0.00028735,2]
[309801175,1704153036831,-155.0,0.00028735,2]
[309801176,1704153036840,-155.0,0.00028735,2]
[309801177,1704153036850,-155.0,0.00028735,2]
[309801178,1704153036859,-516.94954613,0.00028736,2]
[309801179,1704153036870,-2088.30502257,0.00028736,2]
[309801181,1704153036880,-44.22656837,0.00028737,2]
[309801182,1704153036889,-1842.05899438,0.00028738,2]
[309801184,1704153036898,-2770.37255743,0.00028738,2]
[309801185,1704153036908,-1057.98752379,0.00028738,2]
[309801187,1704153036917,-278.31410173,0.00028738,2]
[309801189,1704153036927,-155.0,0.00028738,2]
[309801191,1704153036959,-301.20793522,0.00028738,2]
[309801193,1704153036968,-155.0,0.00028738,2]
[309801195,1704153036978,-202.52398103,0.00028738,2]
[309801196,1704153036988,-626.83867298,0.00028738,2]
[309801198,1704153036998,-163.35829217,0.00028739,2]
[309801201,1704153037008,-360.87448358,0.00028739,2]
[309801202,1704153037019,-263.98450465,0.00028739,2]
[309801205,1704153037032,-1583.44171187,0.00028739,2]
[309801207,1704153037042,-1252.56346846,0.00028739,2]
[309801209,1704153037051,-196.21358155,0.00028739,2]
[309801211,1704153037060,-155.0,0.00028739,2]
[309801225,1704153037203,-155.0,0.00028739,2]
[309801227,1704153037215,-33638.16110641,0.00028739,2]
[309801229,1704153037226,-1776.0132116,0.00028739,2]
[309801232,1704153037236,-155.0,0.00028739,2]
[309801233,1704153037246,-403.22829154,0.00028739,2]
[309801235,1704153037255,-2311.37208248,0.0002874,2]
[309801238,1704153037265,-3281.08856192,0.0002874,2]
[309801240,1704153037277,-4499.8764254,0.0002874,2]
[309801242,1704153037289,-17344.71629589,0.0002874,2]
[309801244,1704153037299,-1762.02403637,0.0002874,2]
[309801246,1704153037308,-1702.94991301,0.0002874,2]
[309801248,1704153037317,-393.68225135,0.0002874,2]
[309801250,1704153037326,-155.0,0.0002874,2]
[309801252,1704153037335,-155.0,0.0002874,2]
[309801254,1704153037344,-5000.0,0.0002874,2]
[309801256,1704153037353,-158.21861741,0.0002874,2]
[309801258,1704153037363,-2937.00836296,0.0002874,2]
[309801260,1704153037372,-244.02773352,0.0002874,2]
[309801262,1704153037381,-155.0,0.0002874,2]
[309801264,1704153037390,-3180.04163262,0.0002874,2]
[309801266,1704153037398,-155.0,0.00028741,2]
[309801267,1704153037407,-5706.23288983,0.00028741,2]
[309801270,1704153037417,-248.12804319,0.00028741,2]
[309801273,1704153037426,-241.61161094,0.00028741,2]
[309801276,1704153037435,-937.43506641,0.00028741,2]
[309801278,1704153037444,-155.0,0.00028741,2]
[309801280,1704153037453,-288.15054455,0.00028741,2]
[309801282,1704153037463,-3035.06116925,0.00028741,2]
[309801284,1704153037472,-171.29294843,0.00028741,2]
[309801287,1704153037481,-556.86687449,0.00028741,2]
[309801289,1704153037491,-155.0,0.00028741,2]
[309801291,1704153037499,-521.96752557,0.00028741,2]
[309801293,1704153037509,-650.14671211,0.00028741,2]
[309801295,1704153037518,-259.19969068,0.00028741,2]
[309801297,1704153037527,-155.0,0.00028742,2]
[309801299,1704153037536,-369.84974276,0.00028742,2]
[309801301,1704153037545,-2466.96629898,0.00028742,2]
[309801303,1704153037554,-383.24855968,0.00028742,2]
[309801305,1704153037563,-619.96222449,0.00028742,2]
[309801307,1704153037573,-2610.96544886,0.00028742,2]
[309801308,1704153037582,-579.61035159,0.00028742,2]
[309801309,1704153037591,-269.83626346,0.00028742,2]
[309801310,1704153037600,-155.0,0.00028742,2]
[309801311,1704153037609,-1040.98279535,0.00028742,2]
[309801312,1704153037617,-155.0,0.00028742,2]
[309801313,1704153037626,-2129.994798,0.00028742,2]
[309801314,1704153037635,-508.46,0.00028743,2]
[309801315,1704153037644,-530.98245295,0.00028945,2]
[309801316,1704153037653,-251.99880636,0.00028945,2]
[309801317,1704153037662,-220.26666446,0.00028945,2]
[309801319,1704153037671,-155.0,0.00028945,2]
[309801320,1704153037681,-155.0,0.00028945,2]
[309801322,1704153037690,-2891.24890645,0.00028945,2]
[309801324,1704153037699,-4471.5640939,0.00028945,2]
[309801327,1704153037708,-155.0,0.00028946,2]
[309801329,1704153037718,-309.02030832,0.00028946,2]
[309801331,1704153037727,-7482.82972808,0.00028946,2]
[309801333,1704153037735,-158.0787597,0.00028946,2]
[309801335,1704153037744,-3316.86540737,0.00028946,2]
[309801337,1704153037753,-513.70005074,0.00028947,2]
[309801339,1704153037763,-156.44158291,0.00028948,2]
[309801340,1704153037771,-1132.97142941,0.00029044,2]
[309801343,1704153037788,-16706.72309889,0.00029045,2]
[309801345,1704153037797,-245.15067094,0.00029046,2]
[309801347,1704153037806,-1234.00724605,0.00029068,2]
[309801349,1704153037815,-16246.7,0.00029068,2]
[309801351,1704153037825,-876.17310783,0.00029069,2]
[309801353,1704153037834,-336.35995625,0.00030443,4]
[309801354,1704153037843,-310.0,0.00030446,4]
[309801356,1704153037855,-376.73510936,0.00030597,4]
[309801358,1704153037864,-4609.49037417,0.00030597,4]
[309801360,1704153037874,-469.57994188,0.00030598,4]
[309801362,1704153037884,-310.0,0.00030598,4]
[309801364,1704153037893,-421.8406387,0.00030599,4]
[309801366,1704153037902,-170.0757017,0.00030599,4]
[309801369,1704153037912,-155.18413992,0.00030599,4]
[309801371,1704153037921,-18948.26672582,0.00030599,2]
[309801373,1704153037931,-499.99,0.00030599,2]
[309801375,1704153037940,-172.87471788,0.000306,4]
[309801377,1704153037950,-217.17335148,0.000306,4]
[309801379,1704153037959,-541.22410251,0.000306,4]
[309801381,1704153037970,-172.42000384,0.00030602,2]
[309801383,1704153037980,-172.42000384,0.00030602,2]
[309801384,1704153037989,-445.824824,0.00030614,4]
[309801386,1704153037999,-3780.95,0.00030799,2]
[309801388,1704153038008,-250.0,0.0003097,2]
[309801391,1704153038018,-508.46,0.00031007,2]
[309801393,1704153038028,-23900.0,0.00031101,2]
[309801395,1704153038038,-156.44158287,0.00031138,2]
[309801397,1704153038046,-500.0,0.0003142,2]
[309801399,1704153038055,-162.31,0.00031691,2]
[309801401,1704153038065,-301.44,0.00032574,2]
[309801403,1704153038074,-427.4,0.00032863,2]
[309801405,1704153038083,-162.65,0.00032877,15]
[309801407,1704153038092,-508.46,0.00033271,2]
[309801409,1704153038103,-156.44158287,0.00033329,2]
[309801411,1704153038113,-281.51,0.00033853,2]
[309801413,1704153038122,-500.0,0.00034,2]
[309801415,1704153038131,-1000.0,0.00034,4]
[309801417,1704153038141,-252.8475,0.000343,2]
[309801419,1704153038150,-155.0,0.00034396,4]
[309801420,1704153038159,-6414.95009199,0.00034396,4]
[309801423,1704153038168,-155.0,0.00034396,4]
[309801425,1704153038178,-155.0,0.00034398,4]
[309801426,1704153038187,-155.0,0.00034398,4]
[309801429,1704153038197,-428.7146026,0.00034398,4]